[Event "Elite Hotels Open 2023"]
[Site "Elite Stadshotellet, Kungsgatan 6, Vaxjo, Sweden"]
[Date "2023.02.12"]
[Round "8.7"]
[White "Kristensen, Kaare Hove"]
[Black "Krantz, Christopher"]
[Result "1-0"]
[TimeControl "15 minutes + 5 seconds per move from move one (Round 1 - 4) / 90 minutes + 30 seconds per move from move one (Round 5 - 8)"]
[WhiteTitle "IM"]
[WhiteFideId "1400940"]
[BlackFideId "1707876"]
[WhiteElo "2210"]
[BlackElo "2262"]

1. e4 {[%clk 01:30:52]} {[%emt 00:00:07]} e5 {[%clk 01:30:21]} {[%emt
00:00:40]} 2. Nf3 {[%clk 01:31:12]} {[%emt 00:00:09]} Nc6 {[%clk 01:30:45]}
{[%emt 00:00:07]} 3. d4 {[%clk 01:31:09]} {[%emt 00:00:34]} exd4 {[%clk
01:31:07]} {[%emt 00:00:08]} 4. Nxd4 {[%clk 01:31:30]} {[%emt 00:00:08]} Nf6
{[%clk 01:31:24]} {[%emt 00:00:13]} 5. Nxc6 {[%clk 01:31:09]} {[%emt 00:00:52]}
bxc6 {[%clk 01:31:43]} {[%emt 00:00:10]} 6. Bd3 {[%clk 01:24:55]} {[%emt
00:06:44]} d5 {[%clk 01:23:43]} {[%emt 00:08:30]} 7. Qe2 {[%clk 01:22:10]}
{[%emt 00:03:14]} dxe4 {[%clk 01:10:16]} {[%emt 00:13:59]} 8. Nc3 {[%clk
01:17:19]} {[%emt 00:05:20]} Bb4 {[%clk 01:03:54]} {[%emt 00:06:53]} 9. Bxe4
{[%clk 01:17:18]} {[%emt 00:00:30]} Bxc3+ {[%clk 00:54:14]} {[%emt 00:10:11]}
10. bxc3 {[%clk 01:17:37]} {[%emt 00:00:11]} Nxe4 {[%clk 00:51:36]} {[%emt
00:03:08]} 11. Qxe4+ {[%clk 01:17:53]} {[%emt 00:00:14]} Qe7 {[%clk 00:51:58]}
{[%emt 00:00:07]} 12. Qxe7+ {[%clk 01:18:13]} {[%emt 00:00:11]} Kxe7 {[%clk
00:52:23]} {[%emt 00:00:05]} 13. Bf4 {[%clk 01:16:42]} {[%emt 00:02:00]} Bf5
{[%clk 00:51:23]} {[%emt 00:01:30]} 14. O-O-O {[%clk 01:08:40]} {[%emt
00:08:32]} Rhc8 {[%clk 00:48:47]} {[%emt 00:03:06]} 15. Rhe1+ {[%clk 01:05:40]}
{[%emt 00:03:30]} Be6 {[%clk 00:48:19]} {[%emt 00:00:58]} 16. Rd4 {[%clk
00:55:01]} {[%emt 00:11:09]} a6 {[%clk 00:36:19]} {[%emt 00:12:31]} 17. a3
{[%clk 00:43:54]} {[%emt 00:11:35]} Kf8 {[%clk 00:31:27]} {[%emt 00:05:23]} 18.
Rb4 {[%clk 00:41:18]} {[%emt 00:03:05]} Rcb8 {[%clk 00:27:17]} {[%emt
00:04:41]} 19. Bxc7 {[%clk 00:40:20]} {[%emt 00:01:28]} Rxb4 {[%clk 00:27:38]}
{[%emt 00:00:08]} 20. cxb4 {[%clk 00:39:32]} {[%emt 00:01:19]} Ra7 {[%clk
00:26:28]} {[%emt 00:01:40]} 21. Bd6+ {[%clk 00:36:01]} {[%emt 00:03:59]} Ke8
{[%clk 00:26:44]} {[%emt 00:00:15]} 22. f4 {[%clk 00:24:21]} {[%emt 00:12:10]}
Kd8 {[%clk 00:23:58]} {[%emt 00:03:17]} 23. Be5 {[%clk 00:23:59]} {[%emt
00:00:51]} g6 {[%clk 00:24:10]} {[%emt 00:00:19]} 24. Bd4 {[%clk 00:23:42]}
{[%emt 00:00:45]} Rd7 {[%clk 00:23:23]} {[%emt 00:01:18]} 25. c3 {[%clk
00:23:26]} {[%emt 00:00:46]} Kc7 {[%clk 00:22:09]} {[%emt 00:01:44]} 26. Kd2
{[%clk 00:22:31]} {[%emt 00:01:24]} Rd8 {[%clk 00:20:39]} {[%emt 00:02:02]} 27.
Ke3 {[%clk 00:21:18]} {[%emt 00:01:41]} h5 {[%clk 00:20:02]} {[%emt 00:01:08]}
28. a4 {[%clk 00:17:01]} {[%emt 00:04:47]} Bd5 {[%clk 00:18:36]} {[%emt
00:01:55]} 29. Kf2 {[%clk 00:16:10]} {[%emt 00:01:22]} Kd7 {[%clk 00:18:02]}
{[%emt 00:01:05]} 30. Rd1 {[%clk 00:13:33]} {[%emt 00:03:06]} Bb3 {[%clk
00:14:47]} {[%emt 00:03:44]} 31. Rd2 {[%clk 00:12:45]} {[%emt 00:01:16]} Kc8
{[%clk 00:14:52]} {[%emt 00:00:28]} 32. a5 {[%clk 00:12:50]} {[%emt 00:00:25]}
Bc4 {[%clk 00:14:55]} {[%emt 00:00:26]} 33. Kg3 {[%clk 00:09:45]} {[%emt
00:03:35]} Rd5 {[%clk 00:12:44]} {[%emt 00:02:41]} 34. Rf2 {[%clk 00:09:24]}
{[%emt 00:00:51]} Bd3 {[%clk 00:11:38]} {[%emt 00:01:38]} 35. Rf3 {[%clk
00:08:38]} {[%emt 00:01:15]} Bf5 {[%clk 00:09:40]} {[%emt 00:02:28]} 36. Re3
{[%clk 00:08:49]} {[%emt 00:00:18]} Be6 {[%clk 00:09:10]} {[%emt 00:01:02]} 37.
Kh4 {[%clk 00:06:07]} {[%emt 00:03:11]} Rd8 {[%clk 00:07:42]} {[%emt 00:01:59]}
38. Rxe6 {[%clk 00:04:48]} {[%emt 00:01:50]} fxe6 {[%clk 00:07:48]} {[%emt
00:00:23]} 39. Kg5 {[%clk 00:04:56]} {[%emt 00:00:21]} Kd7 {[%clk 00:04:13]}
{[%emt 00:04:06]} 40. g3 {[%clk 00:04:44]} {[%emt 00:00:42]} Kd6 {[%clk
00:01:55]} {[%emt 00:02:48]} 41. Kxg6 {[%clk 00:04:41]} {[%emt 00:00:33]} Rd7
{[%clk 00:02:18]} {[%emt 00:00:06]} 42. h4 {[%clk 00:04:45]} {[%emt 00:00:26]}
Kd5 {[%clk 00:02:17]} {[%emt 00:00:32]} 43. Kxh5 {[%clk 00:04:55]} {[%emt
00:00:20]} Ke4 {[%clk 00:02:39]} {[%emt 00:00:08]} 44. Kg6 {[%clk 00:04:58]}
{[%emt 00:00:27]} Rd6 {[%clk 00:01:08]} {[%emt 00:02:00]} 45. Be5 {[%clk
00:04:13]} {[%emt 00:01:16]} Rd3 {[%clk 00:01:30]} {[%emt 00:00:10]} 46. g4
{[%clk 00:04:35]} {[%emt 00:00:06]} Rd8 {[%clk 00:00:40]} {[%emt 00:01:19]} 47.
g5 {[%clk 00:04:34]} {[%emt 00:00:32]} Rg8+ {[%clk 00:01:06]} {[%emt 00:00:03]}
48. Kf7 {[%clk 00:04:54]} {[%emt 00:00:09]} Rc8 {[%clk 00:01:05]} {[%emt
00:00:31]} 49. Kxe6 {[%clk 00:05:12]} {[%emt 00:00:13]} c5 {[%clk 00:01:00]}
{[%emt 00:00:35]} 50. h5 {[%clk 00:04:56]} {[%emt 00:00:45]} 1-0

[Event "Elite Hotels Open 2023"]
[Site "Elite Stadshotellet, Kungsgatan 6, Vaxjo, Sweden"]
[Date "2023.02.12"]
[Round "8.8"]
[White "Lindberg, Bengt"]
[Black "Strom-Engdahl, Alexander"]
[Result "1-0"]
[TimeControl "15 minutes + 5 seconds per move from move one (Round 1 - 4) / 90 minutes + 30 seconds per move from move one (Round 5 - 8)"]
[WhiteTitle "IM"]
[WhiteFideId "1700359"]
[BlackFideId "1741586"]
[WhiteElo "2354"]
[BlackElo "2097"]

1. e4 {[%clk 01:30:57]} {[%emt 00:00:02]} e6 {[%clk 01:30:50]} {[%emt
00:00:11]} 2. d4 {[%clk 01:31:20]} {[%emt 00:00:07]} d5 {[%clk 01:31:16]}
{[%emt 00:00:05]} 3. Nc3 {[%clk 01:31:46]} {[%emt 00:00:04]} Bb4 {[%clk
01:31:33]} {[%emt 00:00:13]} 4. e5 {[%clk 01:32:10]} {[%emt 00:00:06]} c5
{[%clk 01:31:58]} {[%emt 00:00:05]} 5. a3 {[%clk 01:32:36]} {[%emt 00:00:04]}
Bxc3+ {[%clk 01:32:25]} {[%emt 00:00:02]} 6. bxc3 {[%clk 01:32:59]} {[%emt
00:00:07]} Ne7 {[%clk 01:32:47]} {[%emt 00:00:09]} 7. h4 {[%clk 01:33:18]}
{[%emt 00:00:11]} Qc7 {[%clk 01:31:34]} {[%emt 00:01:43]} 8. Nf3 {[%clk
01:33:36]} {[%emt 00:00:10]} Bd7 {[%clk 01:29:28]} {[%emt 00:02:38]} 9. a4
{[%clk 01:26:52]} {[%emt 00:07:14]} Qa5 {[%clk 01:25:44]} {[%emt 00:04:13]} 10.
Qd2 {[%clk 01:14:04]} {[%emt 00:13:19]} Nbc6 {[%clk 01:23:27]} {[%emt
00:02:48]} 11. dxc5 {[%clk 01:11:09]} {[%emt 00:03:25]} Qxc5 {[%clk 01:20:09]}
{[%emt 00:03:46]} 12. h5 {[%clk 01:10:57]} {[%emt 00:00:42]} h6 {[%clk
01:19:22]} {[%emt 00:01:17]} 13. Rb1 {[%clk 00:56:44]} {[%emt 00:14:43]} Na5
{[%clk 01:16:11]} {[%emt 00:03:42]} 14. Rh4 {[%clk 00:52:39]} {[%emt 00:04:33]}
Rc8 {[%clk 01:11:18]} {[%emt 00:05:24]} 15. Rg4 {[%clk 00:49:36]} {[%emt
00:03:32]} Kf8 {[%clk 01:05:58]} {[%emt 00:05:52]} 16. Ra1 {[%clk 00:44:39]}
{[%emt 00:05:27]} b6 {[%clk 01:02:20]} {[%emt 00:04:08]} 17. c4 {[%clk
00:42:19]} {[%emt 00:02:50]} Qc7 {[%clk 00:56:54]} {[%emt 00:05:57]} 18. Ba3
{[%clk 00:41:41]} {[%emt 00:01:08]} Bc6 {[%clk 00:51:31]} {[%emt 00:05:53]} 19.
Bd6 {[%clk 00:37:25]} {[%emt 00:04:44]} Qd7 {[%clk 00:48:36]} {[%emt 00:03:26]}
20. Nd4 {[%clk 00:37:12]} {[%emt 00:00:42]} Nb7 {[%clk 00:45:56]} {[%emt
00:03:10]} 21. cxd5 {[%clk 00:14:06]} {[%emt 00:23:37]} exd5 {[%clk 00:44:04]}
{[%emt 00:02:21]} 22. Bxe7+ {[%clk 00:14:31]} {[%emt 00:00:05]} Qxe7 {[%clk
00:44:01]} {[%emt 00:00:33]} 23. Be2 {[%clk 00:12:45]} {[%emt 00:02:16]} Qxe5
{[%clk 00:40:26]} {[%emt 00:04:06]} 24. Ra3 {[%clk 00:11:35]} {[%emt 00:01:40]}
Nd6 {[%clk 00:37:02]} {[%emt 00:03:55]} 25. Qb4 {[%clk 00:07:37]} {[%emt
00:04:26]} Kg8 {[%clk 00:35:14]} {[%emt 00:02:18]} 26. Re3 {[%clk 00:06:52]}
{[%emt 00:01:14]} Ne4 {[%clk 00:34:54]} {[%emt 00:00:52]} 27. f3 {[%clk
00:06:11]} {[%emt 00:01:10]} Qd6 {[%clk 00:35:15]} {[%emt 00:00:10]} 28. Qb2
{[%clk 00:05:47]} {[%emt 00:00:53]} Bd7 {[%clk 00:28:54]} {[%emt 00:06:52]} 29.
Rxg7+ {[%clk 00:05:32]} {[%emt 00:00:45]} Kf8 {[%clk 00:29:07]} {[%emt
00:00:17]} 30. fxe4 {[%clk 00:05:48]} {[%emt 00:00:14]} Qe5 {[%clk 00:27:43]}
{[%emt 00:01:54]} 31. Rgg3 {[%clk 00:05:25]} {[%emt 00:00:52]} dxe4 {[%clk
00:27:21]} {[%emt 00:00:53]} 32. Ne6+ {[%clk 00:05:07]} {[%emt 00:00:47]} Qxe6
{[%clk 00:27:35]} {[%emt 00:00:17]} 33. Qxh8+ {[%clk 00:05:31]} {[%emt
00:00:05]} Ke7 {[%clk 00:28:00]} {[%emt 00:00:06]} 34. Qd4 {[%clk 00:05:50]}
{[%emt 00:00:11]} f5 {[%clk 00:26:31]} {[%emt 00:01:59]} 35. Rg7+ {[%clk
00:05:50]} {[%emt 00:00:28]} Kd8 {[%clk 00:26:09]} {[%emt 00:00:54]} 36. Bb5
{[%clk 00:05:52]} {[%emt 00:00:27]} 1-0

[Event "Elite Hotels Open 2023"]
[Site "Elite Stadshotellet, Kungsgatan 6, Vaxjo, Sweden"]
[Date "2023.02.12"]
[Round "8.9"]
[White "Lindholm, Gustav"]
[Black "Poley, Vladimir"]
[Result "0-1"]
[TimeControl "15 minutes + 5 seconds per move from move one (Round 1 - 4) / 90 minutes + 30 seconds per move from move one (Round 5 - 8)"]
[BlackTitle "IM"]
[WhiteFideId "1736515"]
[BlackFideId "13500090"]
[WhiteElo "2128"]
[BlackElo "2325"]

1. d4 {[%clk 01:30:57]} {[%emt 00:00:03]} g6 {[%clk 01:30:56]} {[%emt
00:00:05]} 2. c4 {[%clk 01:31:23]} {[%emt 00:00:04]} Bg7 {[%clk 01:31:22]}
{[%emt 00:00:03]} 3. Nf3 {[%clk 01:31:46]} {[%emt 00:00:07]} d6 {[%clk
01:31:47]} {[%emt 00:00:05]} 4. g3 {[%clk 01:32:06]} {[%emt 00:00:10]} Nf6
{[%clk 01:31:41]} {[%emt 00:00:36]} 5. Bg2 {[%clk 01:32:28]} {[%emt 00:00:07]}
O-O {[%clk 01:32:07]} {[%emt 00:00:05]} 6. Nc3 {[%clk 01:32:43]} {[%emt
00:00:14]} Re8 {[%clk 01:32:28]} {[%emt 00:00:10]} 7. O-O {[%clk 01:32:00]}
{[%emt 00:01:12]} Bd7 {[%clk 01:30:28]} {[%emt 00:02:31]} 8. e4 {[%clk
01:31:37]} {[%emt 00:00:52]} e5 {[%clk 01:30:53]} {[%emt 00:00:05]} 9. d5
{[%clk 01:29:32]} {[%emt 00:02:36]} a5 {[%clk 01:31:18]} {[%emt 00:00:05]} 10.
Ne1 {[%clk 01:25:17]} {[%emt 00:04:44]} Na6 {[%clk 01:31:26]} {[%emt 00:00:22]}
11. Nd3 {[%clk 01:24:48]} {[%emt 00:00:59]} b6 {[%clk 01:31:51]} {[%emt
00:00:07]} 12. f3 {[%clk 01:21:58]} {[%emt 00:03:19]} Rf8 {[%clk 01:31:39]}
{[%emt 00:00:42]} 13. Bg5 {[%clk 01:19:24]} {[%emt 00:03:03]} h6 {[%clk
01:31:26]} {[%emt 00:00:44]} 14. Be3 {[%clk 01:19:50]} {[%emt 00:00:03]} Ne8
{[%clk 01:31:03]} {[%emt 00:00:53]} 15. Qd2 {[%clk 01:18:26]} {[%emt 00:01:54]}
Kh7 {[%clk 01:31:27]} {[%emt 00:00:06]} 16. Rae1 {[%clk 01:14:30]} {[%emt
00:04:25]} Nc5 {[%clk 01:27:41]} {[%emt 00:04:17]} 17. f4 {[%clk 01:11:27]}
{[%emt 00:03:33]} exf4 {[%clk 01:20:18]} {[%emt 00:07:54]} 18. gxf4 {[%clk
01:02:09]} {[%emt 00:09:47]} Nxd3 {[%clk 01:15:15]} {[%emt 00:05:33]} 19. Qxd3
{[%clk 01:02:32]} {[%emt 00:00:07]} f5 {[%clk 01:15:22]} {[%emt 00:00:24]} 20.
e5 {[%clk 00:46:39]} {[%emt 00:16:22]} dxe5 {[%clk 01:15:19]} {[%emt 00:00:33]}
21. fxe5 {[%clk 00:47:03]} {[%emt 00:00:06]} Bxe5 {[%clk 01:15:17]} {[%emt
00:00:32]} 22. Bxh6 {[%clk 00:46:57]} {[%emt 00:00:36]} Bxh2+ {[%clk 01:14:42]}
{[%emt 00:01:05]} 23. Kxh2 {[%clk 00:47:19]} {[%emt 00:00:08]} Kxh6 {[%clk
01:14:58]} {[%emt 00:00:13]} 24. d6 {[%clk 00:47:07]} {[%emt 00:00:43]} Qh4+
{[%clk 01:10:58]} {[%emt 00:04:30]} 25. Kg1 {[%clk 00:47:26]} {[%emt 00:00:09]}
Rd8 {[%clk 01:10:55]} {[%emt 00:00:33]} 26. dxc7 {[%clk 00:43:56]} {[%emt
00:04:01]} Nxc7 {[%clk 01:11:19]} {[%emt 00:00:05]} 27. Qd2+ {[%clk 00:41:20]}
{[%emt 00:03:07]} Qg5 {[%clk 01:05:04]} {[%emt 00:06:45]} 28. Qd6 {[%clk
00:39:13]} {[%emt 00:02:37]} Ne6 {[%clk 01:02:56]} {[%emt 00:02:38]} 29. Rxe6
{[%clk 00:36:48]} {[%emt 00:02:55]} Bxe6 {[%clk 01:03:21]} {[%emt 00:00:05]} 30.
Qxe6 {[%clk 00:37:10]} {[%emt 00:00:08]} Rfe8 {[%clk 01:03:33]} {[%emt
00:00:17]} 31. Qc6 {[%clk 00:29:32]} {[%emt 00:08:09]} Rd2 {[%clk 01:03:52]}
{[%emt 00:00:10]} 32. Qf3 {[%clk 00:26:01]} {[%emt 00:04:02]} Re3 {[%clk
01:04:08]} {[%emt 00:00:12]} 33. Qa8 {[%clk 00:26:08]} {[%emt 00:00:25]} Rxg2+
{[%clk 01:02:50]} {[%emt 00:01:47]} 34. Qxg2 {[%clk 00:26:18]} {[%emt
00:00:20]} Rg3 {[%clk 01:03:16]} {[%emt 00:00:05]} 0-1

[Event "Elite Hotels Open 2023"]
[Site "Elite Stadshotellet, Kungsgatan 6, Vaxjo, Sweden"]
[Date "2023.02.12"]
[Round "8.10"]
[White "Wagner, Stephan"]
[Black "Grahn, Vidar"]
[Result "1-0"]
[TimeControl "15 minutes + 5 seconds per move from move one (Round 1 - 4) / 90 minutes + 30 seconds per move from move one (Round 5 - 8)"]
[WhiteFideId "1613251"]
[BlackFideId "1744780"]
[WhiteElo "2264"]
[BlackElo "2059"]

1. c4 {[%clk 01:30:57]} {[%emt 00:00:01]} c5 {[%clk 01:30:56]} {[%emt
00:00:05]} 2. Nc3 {[%clk 01:31:21]} {[%emt 00:00:06]} Nc6 {[%clk 01:31:23]}
{[%emt 00:00:04]} 3. g3 {[%clk 01:31:37]} {[%emt 00:00:13]} g6 {[%clk
01:31:49]} {[%emt 00:00:05]} 4. Bg2 {[%clk 01:31:49]} {[%emt 00:00:16]} Bg7
{[%clk 01:32:15]} {[%emt 00:00:05]} 5. e3 {[%clk 01:31:07]} {[%emt 00:01:12]}
e5 {[%clk 01:32:36]} {[%emt 00:00:10]} 6. Nge2 {[%clk 01:30:27]} {[%emt
00:01:09]} d6 {[%clk 01:32:12]} {[%emt 00:00:54]} 7. b3 {[%clk 01:27:20]}
{[%emt 00:03:38]} Bf5 {[%clk 01:31:58]} {[%emt 00:00:43]} 8. d3 {[%clk
01:26:05]} {[%emt 00:01:45]} Nge7 {[%clk 01:31:11]} {[%emt 00:01:17]} 9. Bb2
{[%clk 01:25:00]} {[%emt 00:01:36]} Qd7 {[%clk 01:29:52]} {[%emt 00:01:49]} 10.
Nd5 {[%clk 01:22:51]} {[%emt 00:02:39]} Nxd5 {[%clk 01:27:40]} {[%emt
00:02:42]} 11. cxd5 {[%clk 01:23:15]} {[%emt 00:00:05]} Nb4 {[%clk 01:26:40]}
{[%emt 00:01:31]} 12. e4 {[%clk 01:21:46]} {[%emt 00:01:58]} Bh3 {[%clk
01:25:58]} {[%emt 00:01:13]} 13. O-O {[%clk 01:18:15]} {[%emt 00:04:00]} h5
{[%clk 01:23:16]} {[%emt 00:03:12]} 14. a3 {[%clk 01:16:28]} {[%emt 00:02:18]}
Na6 {[%clk 01:23:08]} {[%emt 00:00:38]} 15. f4 {[%clk 01:16:30]} {[%emt
00:00:27]} h4 {[%clk 01:20:29]} {[%emt 00:03:10]} 16. fxe5 {[%clk 01:01:31]}
{[%emt 00:15:29]} dxe5 {[%clk 01:19:41]} {[%emt 00:01:18]} 17. Bxh3 {[%clk
00:57:15]} {[%emt 00:04:45]} Qxh3 {[%clk 01:19:57]} {[%emt 00:00:14]} 18. Rf2
{[%clk 00:57:41]} {[%emt 00:00:04]} hxg3 {[%clk 01:16:25]} {[%emt 00:04:02]} 19.
Nxg3 {[%clk 00:58:05]} {[%emt 00:00:06]} O-O-O {[%clk 01:15:08]} {[%emt
00:01:48]} 20. Qc2 {[%clk 00:50:24]} {[%emt 00:08:10]} Bh6 {[%clk 01:11:59]}
{[%emt 00:03:38]} 21. Bxe5 {[%clk 00:32:59]} {[%emt 00:17:56]} Be3 {[%clk
01:12:15]} {[%emt 00:00:13]} 22. Bxh8 {[%clk 00:33:25]} {[%emt 00:00:05]} Rxh8
{[%clk 01:12:38]} {[%emt 00:00:07]} 23. Nf1 {[%clk 00:33:51]} {[%emt 00:00:03]}
Bd4 {[%clk 01:10:35]} {[%emt 00:02:34]} 24. Re1 {[%clk 00:32:03]} {[%emt
00:02:18]} Rh4 {[%clk 01:05:29]} {[%emt 00:05:37]} 25. Kh1 {[%clk 00:23:08]}
{[%emt 00:09:25]} Bxf2 {[%clk 00:51:33]} {[%emt 00:14:26]} 26. Qxf2 {[%clk
00:23:31]} {[%emt 00:00:06]} g5 {[%clk 00:50:49]} {[%emt 00:01:14]} 27. Re3
{[%clk 00:23:01]} {[%emt 00:01:00]} Qd7 {[%clk 00:49:14]} {[%emt 00:02:05]} 28.
Rf3 {[%clk 00:23:24]} {[%emt 00:00:08]} Rh7 {[%clk 00:47:21]} {[%emt 00:02:23]}
29. Qg3 {[%clk 00:19:09]} {[%emt 00:04:44]} g4 {[%clk 00:46:40]} {[%emt
00:01:11]} 30. Rf5 {[%clk 00:19:29]} {[%emt 00:00:10]} Rg7 {[%clk 00:46:09]}
{[%emt 00:01:02]} 31. Qe5 {[%clk 00:19:12]} {[%emt 00:00:46]} Rh7 {[%clk
00:45:32]} {[%emt 00:01:08]} 32. Rg5 {[%clk 00:18:41]} {[%emt 00:01:01]} b5
{[%clk 00:45:07]} {[%emt 00:00:55]} 33. Ng3 {[%clk 00:14:07]} {[%emt 00:05:03]}
c4 {[%clk 00:43:13]} {[%emt 00:02:25]} 34. dxc4 {[%clk 00:13:58]} {[%emt
00:00:39]} bxc4 {[%clk 00:43:40]} {[%emt 00:00:03]} 35. Qc3 {[%clk 00:13:52]}
{[%emt 00:00:36]} Qd6 {[%clk 00:43:26]} {[%emt 00:00:43]} 36. Qxc4+ {[%clk
00:14:02]} {[%emt 00:00:20]} Nc7 {[%clk 00:43:26]} {[%emt 00:00:31]} 37. Rxg4
{[%clk 00:11:09]} {[%emt 00:03:23]} Rh8 {[%clk 00:43:07]} {[%emt 00:00:49]} 38.
Qc3 {[%clk 00:09:00]} {[%emt 00:02:39]} Re8 {[%clk 00:43:11]} {[%emt 00:00:25]}
39. b4 {[%clk 00:08:58]} {[%emt 00:00:33]} Kb8 {[%clk 00:43:25]} {[%emt
00:00:16]} 40. Nf5 {[%clk 00:08:39]} {[%emt 00:00:49]} Qa6 {[%clk 00:43:38]}
{[%emt 00:00:17]} 41. d6 {[%clk 00:06:44]} {[%emt 00:02:25]} Ne6 {[%clk
00:41:51]} {[%emt 00:02:17]} 42. Qf3 {[%clk 00:04:26]} {[%emt 00:02:47]} Rc8
{[%clk 00:41:22]} {[%emt 00:00:59]} 43. e5 {[%clk 00:03:55]} {[%emt 00:01:01]}
Qb6 {[%clk 00:41:00]} {[%emt 00:00:53]} 44. Rg1 {[%clk 00:03:30]} {[%emt
00:00:54]} Ng5 {[%clk 00:40:39]} {[%emt 00:00:51]} 45. Qg2 {[%clk 00:03:09]}
{[%emt 00:00:50]} Ne6 {[%clk 00:40:41]} {[%emt 00:00:29]} 46. Ne7 {[%clk
00:03:27]} {[%emt 00:00:12]} Rh8 {[%clk 00:39:55]} {[%emt 00:01:16]} 47. Nc6+
{[%clk 00:02:41]} {[%emt 00:01:16]} Kc8 {[%clk 00:40:14]} {[%emt 00:00:10]} 48.
Ne7+ {[%clk 00:02:44]} {[%emt 00:00:28]} Kb8 {[%clk 00:40:35]} {[%emt
00:00:10]} 49. Rc1 {[%clk 00:02:13]} {[%emt 00:01:00]} Qe3 {[%clk 00:39:38]}
{[%emt 00:01:27]} 50. Nc6+ {[%clk 00:02:15]} {[%emt 00:00:29]} Kc8 {[%clk
00:39:53]} {[%emt 00:00:14]} 51. Nxa7+ {[%clk 00:02:01]} {[%emt 00:00:44]} Kb8
{[%clk 00:40:17]} {[%emt 00:00:06]} 52. Nc6+ {[%clk 00:02:30]} {[%emt
00:00:02]} Kc8 {[%clk 00:40:41]} {[%emt 00:00:04]} 53. Ne7+ {[%clk 00:01:20]}
{[%emt 00:01:42]} Kb8 {[%clk 00:40:53]} {[%emt 00:00:17]} 54. Rf1 {[%clk
00:00:47]} {[%emt 00:01:03]} Nf4 {[%clk 00:40:07]} {[%emt 00:01:16]} 55. Qf3
{[%clk 00:01:00]} {[%emt 00:00:18]} Qd2 {[%clk 00:39:42]} {[%emt 00:00:56]} 56.
Qxf4 {[%clk 00:01:06]} {[%emt 00:00:23]} Qe2 {[%clk 00:39:53]} {[%emt
00:00:20]} 57. Qf2 {[%clk 00:01:06]} {[%emt 00:00:29]} Qe4+ {[%clk 00:38:51]}
{[%emt 00:01:32]} 58. Qg2 {[%clk 00:01:30]} {[%emt 00:00:06]} Qd3 {[%clk
00:38:20]} {[%emt 00:01:02]} 59. Nc6+ {[%clk 00:01:35]} {[%emt 00:00:23]} Kc8
{[%clk 00:38:46]} {[%emt 00:00:05]} 60. Na5 {[%clk 00:01:27]} {[%emt 00:00:39]}
Rh7 {[%clk 00:38:17]} {[%emt 00:00:58]} 61. Qc6+ {[%clk 00:01:38]} {[%emt
00:00:19]} 1-0